[Event "Titled Tuesday Blitz July 05 Early 2022"]
[White "Terry, Renato"]
[Black "Sadubayev, Airat"]
[WhiteFideId "3803457"]
[BlackFideId "13713264"]
[WhiteElo "2577"]
[BlackElo "2163"]
[Result "1-0"]
[Round "02"]
[TimeControl "180+1"]
[Date "2022.07.05"]
[WhiteClock "0:01:19"]
[BlackClock "0:00:28"]

1. d4 {[%clk 0:02:55]}  d5 {[%clk 0:02:59]} 2. Bg5 {[%clk 0:02:51]}  c6 {[%clk 0:02:50]} 3. e3 {[%clk 0:02:51]}  Qb6 {[%clk 0:02:47]} 4. b3 {[%clk 0:02:50]}  e6 {[%clk 0:02:45]} 5. Nf3 {[%clk 0:02:49]}  Nf6 {[%clk 0:02:45]} 6. Bxf6 {[%clk 0:02:47]}  gxf6 {[%clk 0:02:46]} 7. c4 {[%clk 0:02:40]}  Bb4+ {[%clk 0:02:44]} 8. Nbd2 {[%clk 0:02:39]}  Nd7 {[%clk 0:02:45]} 9. Be2 {[%clk 0:02:35]}  f5 {[%clk 0:02:44]} 10. O-O {[%clk 0:02:34]}  Nf6 {[%clk 0:02:44]} 11. Ne5 {[%clk 0:02:27]}  Bd7 {[%clk 0:02:43]} 12. cxd5 {[%clk 0:02:24]}  exd5 {[%clk 0:02:36]} 13. Nxd7 {[%clk 0:02:21]}  Kxd7 {[%clk 0:02:37]} 14. Nf3 {[%clk 0:02:18]}  Bd6 {[%clk 0:02:01]} 15. g3 {[%clk 0:02:15]}  Rae8 {[%clk 0:01:59]} 16. Nh4 {[%clk 0:02:14]}  f4 {[%clk 0:01:51]} 17. exf4 {[%clk 0:02:15]}  Ne4 {[%clk 0:01:47]} 18. Bh5 {[%clk 0:02:02]}  Rhf8 {[%clk 0:01:42]} 19. Nf5 {[%clk 0:01:57]}  Kc7 {[%clk 0:01:40]} 20. Qd3 {[%clk 0:01:44]}  Kb8 {[%clk 0:01:28]} 21. f3 {[%clk 0:01:42]}  Nf6 {[%clk 0:01:02]} 22. Nxd6 {[%clk 0:01:42]}  Nxh5 {[%clk 0:01:00]} 23. Nxe8 {[%clk 0:01:42]}  Rxe8 {[%clk 0:00:58]} 24. Rfe1 {[%clk 0:01:43]}  Rg8 {[%clk 0:00:57]} 25. Kh1 {[%clk 0:01:33]}  Qd8 {[%clk 0:00:57]} 26. Re5 {[%clk 0:01:24]}  Nf6 {[%clk 0:00:44]} 27. Rae1 {[%clk 0:01:22]}  h5 {[%clk 0:00:43]} 28. Qf5 {[%clk 0:01:20]}  h4 {[%clk 0:00:43]} 29. Re7 {[%clk 0:01:19]}  hxg3 {[%clk 0:00:28]} 30. Qxf6 {[%clk 0:01:19]} 1-0


[Site "https://www.chess.com"]

[Event "Titled Tuesday Blitz July 05 Early 2022"]
[White "Tokhirjonova, Gulrukhbegim"]
[Black "Deac, Bogdan-Daniel"]
[WhiteFideId "14203626"]
[BlackFideId "1226380"]
[WhiteElo "2227"]
[BlackElo "2648"]
[Result "0-1"]
[Round "02"]
[TimeControl "180+1"]
[Date "2022.07.05"]
[WhiteClock "0:00:01"]
[BlackClock "0:00:05"]

1. e4 {[%clk 0:03:00]}  c6 {[%clk 0:03:00]} 2. d4 {[%clk 0:03:00]}  d5 {[%clk 0:03:00]} 3. e5 {[%clk 0:02:58]}  Bf5 {[%clk 0:03:00]} 4. Nf3 {[%clk 0:02:58]}  e6 {[%clk 0:03:00]} 5. Be2 {[%clk 0:02:58]}  c5 {[%clk 0:03:01]} 6. dxc5 {[%clk 0:02:47]}  Bxc5 {[%clk 0:02:59]} 7. O-O {[%clk 0:02:48]}  Nc6 {[%clk 0:02:58]} 8. a3 {[%clk 0:02:46]}  Nge7 {[%clk 0:02:52]} 9. b4 {[%clk 0:02:46]}  Bb6 {[%clk 0:02:52]} 10. Bb2 {[%clk 0:02:41]}  Ng6 {[%clk 0:02:50]} 11. Nbd2 {[%clk 0:02:38]}  Nf4 {[%clk 0:02:18]} 12. Bb5 {[%clk 0:02:34]}  O-O {[%clk 0:02:12]} 13. c4 {[%clk 0:02:07]}  Nd3 {[%clk 0:01:56]} 14. Qb3 {[%clk 0:01:19]}  Nxb2 {[%clk 0:00:53]} 15. Qxb2 {[%clk 0:01:20]}  a6 {[%clk 0:00:53]} 16. Bxc6 {[%clk 0:01:20]}  bxc6 {[%clk 0:00:54]} 17. c5 {[%clk 0:01:20]}  Bc7 {[%clk 0:00:53]} 18. Nb3 {[%clk 0:01:21]}  Be4 {[%clk 0:00:47]} 19. Nbd4 {[%clk 0:01:20]}  Qe8 {[%clk 0:00:41]} 20. Rfe1 {[%clk 0:01:20]}  f6 {[%clk 0:00:37]} 21. exf6 {[%clk 0:01:17]}  Rxf6 {[%clk 0:00:38]} 22. Re3 {[%clk 0:00:16]}  Qh5 {[%clk 0:00:35]} 23. h3 {[%clk 0:00:15]}  e5 {[%clk 0:00:22]} 24. Ne2 {[%clk 0:00:08]}  Bxf3 {[%clk 0:00:21]} 25. Rxf3 {[%clk 0:00:08]}  Rxf3 {[%clk 0:00:21]} 26. gxf3 {[%clk 0:00:09]}  Qxf3 {[%clk 0:00:18]} 27. Ng3 {[%clk 0:00:09]}  e4 {[%clk 0:00:17]} 28. Qe2 {[%clk 0:00:09]}  Rf8 {[%clk 0:00:16]} 29. Qxf3 {[%clk 0:00:09]}  Rxf3 {[%clk 0:00:16]} 30. Kg2 {[%clk 0:00:08]}  Be5 {[%clk 0:00:11]} 31. Re1 {[%clk 0:00:08]}  Rxa3 {[%clk 0:00:08]} 32. Nf5 {[%clk 0:00:05]}  Kf7 {[%clk 0:00:06]} 33. Rb1 {[%clk 0:00:03]}  Ke6 {[%clk 0:00:06]} 34. Ne3 {[%clk 0:00:03]}  g6 {[%clk 0:00:05]} 35. Ng4 {[%clk 0:00:02]}  Ra1 {[%clk 0:00:05]} 36. Rb3 {[%clk 0:00:02]}  Bd4 {[%clk 0:00:05]} 37. Ne3 {[%clk 0:00:02]}  h5 {[%clk 0:00:05]} 38. Nc2 {[%clk 0:00:02]}  Rd1 {[%clk 0:00:06]} 39. Ra3 {[%clk 0:00:02]}  Be5 {[%clk 0:00:05]} 40. Rxa6 {[%clk 0:00:02]}  Kd7 {[%clk 0:00:05]} 41. Ra7+ {[%clk 0:00:02]}  Kc8 {[%clk 0:00:06]} 42. Ra6 {[%clk 0:00:02]}  Kb7 {[%clk 0:00:05]} 43. Rb6+ {[%clk 0:00:02]}  Kc7 {[%clk 0:00:06]} 44. b5 {[%clk 0:00:03]}  cxb5 {[%clk 0:00:06]} 45. Rxb5 {[%clk 0:00:03]}  Rd2 {[%clk 0:00:07]} 46. Nb4 {[%clk 0:00:03]}  e3 {[%clk 0:00:06]} 47. Na6+ {[%clk 0:00:03]}  Kc8 {[%clk 0:00:05]} 48. c6 {[%clk 0:00:01]}  e2 {[%clk 0:00:05]} 0-1


[Site "https://www.chess.com"]

[Event "Titled Tuesday Blitz July 05 Early 2022"]
[White "Volkov, Maksim"]
[Black "Corrales Jimenez, Fidel"]
[WhiteFideId "54123070"]
[BlackFideId "3506690"]
[WhiteElo "2155"]
[BlackElo "2541"]
[Result "1/2-1/2"]
[Round "02"]
[TimeControl "180+1"]
[Date "2022.07.05"]
[WhiteClock "0:00:14"]
[BlackClock "0:00:11"]

1. d4 {[%clk 0:03:00]}  Nf6 {[%clk 0:02:58]} 2. c4 {[%clk 0:03:00]}  g6 {[%clk 0:02:58]} 3. g3 {[%clk 0:03:00]}  Bg7 {[%clk 0:02:58]} 4. Bg2 {[%clk 0:03:01]}  d5 {[%clk 0:02:59]} 5. cxd5 {[%clk 0:03:01]}  Nxd5 {[%clk 0:03:00]} 6. e4 {[%clk 0:03:01]}  Nb6 {[%clk 0:02:59]} 7. Ne2 {[%clk 0:03:01]}  O-O {[%clk 0:02:59]} 8. O-O {[%clk 0:03:00]}  e5 {[%clk 0:02:58]} 9. dxe5 {[%clk 0:02:50]}  Bxe5 {[%clk 0:02:59]} 10. Nbc3 {[%clk 0:02:49]}  Na6 {[%clk 0:02:46]} 11. f4 {[%clk 0:02:30]}  Bg7 {[%clk 0:02:41]} 12. a3 {[%clk 0:02:24]}  Nc5 {[%clk 0:02:35]} 13. e5 {[%clk 0:02:00]}  Qxd1 {[%clk 0:02:28]} 14. Rxd1 {[%clk 0:01:59]}  Nb3 {[%clk 0:02:28]} 15. Rb1 {[%clk 0:02:00]}  Bf5 {[%clk 0:02:24]} 16. Ne4 {[%clk 0:01:59]}  Rad8 {[%clk 0:02:12]} 17. Be3 {[%clk 0:01:57]}  Nc4 {[%clk 0:02:11]} 18. Kf2 {[%clk 0:01:47]}  Bxe4 {[%clk 0:02:03]} 19. Bxe4 {[%clk 0:01:43]}  Nbd2 {[%clk 0:01:40]} 20. Bxd2 {[%clk 0:01:03]}  Nxd2 {[%clk 0:01:30]} 21. Bxb7 {[%clk 0:01:02]}  Nxb1 {[%clk 0:01:24]} 22. Rxb1 {[%clk 0:01:03]}  Rb8 {[%clk 0:00:59]} 23. Be4 {[%clk 0:01:00]}  Rfd8 {[%clk 0:00:57]} 24. Ke3 {[%clk 0:00:56]}  f6 {[%clk 0:00:56]} 25. exf6 {[%clk 0:00:50]}  Bxf6 {[%clk 0:00:57]} 26. b4 {[%clk 0:00:49]}  c5 {[%clk 0:00:57]} 27. b5 {[%clk 0:00:35]}  c4 {[%clk 0:00:46]} 28. a4 {[%clk 0:00:35]}  Re8 {[%clk 0:00:12]} 29. Kf3 {[%clk 0:00:32]}  Rbd8 {[%clk 0:00:12]} 30. Rc1 {[%clk 0:00:30]}  Rd2 {[%clk 0:00:11]} 31. Rxc4 {[%clk 0:00:28]}  Kh8 {[%clk 0:00:11]} 32. h4 {[%clk 0:00:26]}  Ra2 {[%clk 0:00:11]} 33. Nc1 {[%clk 0:00:24]}  Ra3+ {[%clk 0:00:10]} 34. Nd3 {[%clk 0:00:24]}  Rd8 {[%clk 0:00:11]} 35. Ke3 {[%clk 0:00:24]}  Re8 {[%clk 0:00:11]} 36. Kf3 {[%clk 0:00:21]}  Rd8 {[%clk 0:00:11]} 37. Ke3 {[%clk 0:00:21]}  Re8 {[%clk 0:00:11]} 38. Kf3 {[%clk 0:00:14]} 1/2-1/2


[Site "https://www.chess.com"]

[Event "Titled Tuesday Blitz July 05 Early 2022"]
[White "Bachmann, Axel"]
[Black "Moussard, Jules"]
[WhiteFideId "3700488"]
[BlackFideId "642908"]
[WhiteElo "2587"]
[BlackElo "2589"]
[Result "0-1"]
[Round "03"]
[TimeControl "180+1"]
[Date "2022.07.05"]
[WhiteClock "0:00:12"]
[BlackClock "0:01:34"]

1. e4 {[%clk 0:02:57]}  d6 {[%clk 0:02:52]} 2. d4 {[%clk 0:02:56]}  g6 {[%clk 0:02:52]} 3. Nf3 {[%clk 0:02:53]}  Bg7 {[%clk 0:02:52]} 4. Bc4 {[%clk 0:02:53]}  Nf6 {[%clk 0:02:52]} 5. Qe2 {[%clk 0:02:53]}  Nc6 {[%clk 0:02:52]} 6. h3 {[%clk 0:02:46]}  O-O {[%clk 0:02:51]} 7. O-O {[%clk 0:02:45]}  Nh5 {[%clk 0:02:51]} 8. c3 {[%clk 0:02:39]}  e5 {[%clk 0:02:51]} 9. dxe5 {[%clk 0:02:36]}  Nxe5 {[%clk 0:02:51]} 10. Nxe5 {[%clk 0:02:35]}  Bxe5 {[%clk 0:02:51]} 11. Bh6 {[%clk 0:02:02]}  Qf6 {[%clk 0:02:51]} 12. Nd2 {[%clk 0:01:46]}  Re8 {[%clk 0:02:41]} 13. Qf3 {[%clk 0:01:42]}  Nf4 {[%clk 0:02:35]} 14. Bxf4 {[%clk 0:01:31]}  Qxf4 {[%clk 0:02:36]} 15. Rfe1 {[%clk 0:00:58]}  Qh2+ {[%clk 0:02:27]} 16. Kf1 {[%clk 0:00:58]}  Be6 {[%clk 0:02:27]} 17. Ke2 {[%clk 0:00:43]}  Bxc4+ {[%clk 0:02:19]} 18. Nxc4 {[%clk 0:00:44]}  d5 {[%clk 0:02:17]} 19. Rh1 {[%clk 0:00:36]}  Qf4 {[%clk 0:02:15]} 20. Qxf4 {[%clk 0:00:22]}  Bxf4 {[%clk 0:02:16]} 21. Kf3 {[%clk 0:00:23]}  Rxe4 {[%clk 0:02:14]} 22. Na5 {[%clk 0:00:22]}  b6 {[%clk 0:02:01]} 23. Nc6 {[%clk 0:00:20]}  Bd6 {[%clk 0:01:58]} 24. Rad1 {[%clk 0:00:20]}  Rae8 {[%clk 0:01:56]} 25. g3 {[%clk 0:00:17]}  Re2 {[%clk 0:01:56]} 26. Rb1 {[%clk 0:00:11]}  Rd2 {[%clk 0:01:53]} 27. Nd4 {[%clk 0:00:11]}  Bc5 {[%clk 0:01:52]} 28. Rhd1 {[%clk 0:00:12]}  Rxd1 {[%clk 0:01:46]} 29. Rxd1 {[%clk 0:00:13]}  Bxd4 {[%clk 0:01:45]} 30. Rxd4 {[%clk 0:00:13]}  Re5 {[%clk 0:01:35]} 31. Ra4 {[%clk 0:00:12]}  a5 {[%clk 0:01:34]} 32. b4 {[%clk 0:00:12]}  Re4 {[%clk 0:01:34]} 0-1


[Site "https://www.chess.com"]

[Event "Titled Tuesday Blitz July 05 Early 2022"]
[White "Barp, Alberto"]
[Black "Lashkin, Jegor"]
[WhiteFideId "872555"]
[BlackFideId "13907808"]
[WhiteElo "2229"]
[BlackElo "2368"]
[Result "1-0"]
[Round "03"]
[TimeControl "180+1"]
[Date "2022.07.05"]
[WhiteClock "0:00:03"]
[BlackClock "0:00:02"]

1. d4 {[%clk 0:02:50]}  Nf6 {[%clk 0:03:00]} 2. Bg5 {[%clk 0:02:48]}  e6 {[%clk 0:02:59]} 3. e4 {[%clk 0:02:48]}  h6 {[%clk 0:02:59]} 4. Bxf6 {[%clk 0:02:48]}  Qxf6 {[%clk 0:03:00]} 5. c3 {[%clk 0:02:49]}  c5 {[%clk 0:03:00]} 6. e5 {[%clk 0:02:46]}  Qd8 {[%clk 0:03:00]} 7. Nf3 {[%clk 0:02:46]}  cxd4 {[%clk 0:02:52]} 8. cxd4 {[%clk 0:02:45]}  Bb4+ {[%clk 0:02:49]} 9. Nbd2 {[%clk 0:02:36]}  O-O {[%clk 0:02:48]} 10. a3 {[%clk 0:02:34]}  Bxd2+ {[%clk 0:02:42]} 11. Qxd2 {[%clk 0:02:35]}  d6 {[%clk 0:02:41]} 12. Bd3 {[%clk 0:02:33]}  dxe5 {[%clk 0:02:26]} 13. dxe5 {[%clk 0:02:34]}  Bd7 {[%clk 0:02:25]} 14. O-O {[%clk 0:02:26]}  Bc6 {[%clk 0:02:24]} 15. Qe3 {[%clk 0:02:26]}  Nd7 {[%clk 0:02:08]} 16. Rfd1 {[%clk 0:02:24]}  Qb6 {[%clk 0:02:04]} 17. Nd4 {[%clk 0:02:21]}  Rfd8 {[%clk 0:02:01]} 18. Rac1 {[%clk 0:02:04]}  Bd5 {[%clk 0:01:43]} 19. Rd2 {[%clk 0:01:39]}  Rac8 {[%clk 0:01:36]} 20. Re1 {[%clk 0:01:37]}  Nc5 {[%clk 0:01:23]} 21. Bc2 {[%clk 0:01:37]}  a5 {[%clk 0:01:10]} 22. h4 {[%clk 0:01:36]}  Kf8 {[%clk 0:00:57]} 23. Qf4 {[%clk 0:01:22]}  Rd7 {[%clk 0:00:44]} 24. Red1 {[%clk 0:01:17]}  Rdc7 {[%clk 0:00:31]} 25. h5 {[%clk 0:00:57]}  Qxb2 {[%clk 0:00:15]} 26. Bb3 {[%clk 0:00:25]}  Qxa3 {[%clk 0:00:09]} 27. Bxd5 {[%clk 0:00:25]}  exd5 {[%clk 0:00:09]} 28. Nb5 {[%clk 0:00:21]}  Ne6 {[%clk 0:00:04]} 29. Qf5 {[%clk 0:00:13]}  Qc5 {[%clk 0:00:04]} 30. Nxc7 {[%clk 0:00:12]}  Qxc7 {[%clk 0:00:04]} 31. Rxd5 {[%clk 0:00:12]}  Qe7 {[%clk 0:00:04]} 32. Rd7 {[%clk 0:00:11]}  Qe8 {[%clk 0:00:04]} 33. Qd3 {[%clk 0:00:10]}  Kg8 {[%clk 0:00:04]} 34. Qa3 {[%clk 0:00:09]}  Ra8 {[%clk 0:00:03]} 35. Rxb7 {[%clk 0:00:08]}  a4 {[%clk 0:00:03]} 36. Rdd7 {[%clk 0:00:07]}  Ng5 {[%clk 0:00:03]} 37. Re7 {[%clk 0:00:04]}  Qd8 {[%clk 0:00:03]} 38. f4 {[%clk 0:00:04]}  Qd1+ {[%clk 0:00:03]} 39. Kh2 {[%clk 0:00:04]}  Qxh5+ {[%clk 0:00:04]} 40. Kg1 {[%clk 0:00:03]}  Ne4 {[%clk 0:00:04]} 41. Rxf7 {[%clk 0:00:02]}  Qd1+ {[%clk 0:00:04]} 42. Kh2 {[%clk 0:00:02]}  Qh5+ {[%clk 0:00:04]} 43. Kg1 {[%clk 0:00:02]}  Qd1+ {[%clk 0:00:04]} 44. Kh2 {[%clk 0:00:02]}  Qh5+ {[%clk 0:00:04]} 45. Qh3 {[%clk 0:00:03]}  Qxf7 {[%clk 0:00:02]} 46. Rxf7 {[%clk 0:00:02]}  Kxf7 {[%clk 0:00:02]} 47. Qf5+ {[%clk 0:00:02]}  Nf6 {[%clk 0:00:02]} 48. exf6 {[%clk 0:00:03]} 1-0


[Site "https://www.chess.com"]

[Event "Titled Tuesday Blitz July 05 Early 2022"]
[White "Bekturov, Tamerlan"]
[Black "Kamsky, Gata"]
[WhiteFideId "13710184"]
[BlackFideId "2000024"]
[WhiteElo "2128"]
[BlackElo "2645"]
[Result "0-1"]
[Round "03"]
[TimeControl "180+1"]
[Date "2022.07.05"]
[WhiteClock "0:00:14"]
[BlackClock "0:01:22"]

1. d4 {[%clk 0:02:37]}  d5 {[%clk 0:02:52]} 2. c4 {[%clk 0:02:36]}  c6 {[%clk 0:02:52]} 3. cxd5 {[%clk 0:02:37]}  cxd5 {[%clk 0:02:51]} 4. Bf4 {[%clk 0:02:37]}  e6 {[%clk 0:02:47]} 5. e3 {[%clk 0:02:37]}  Bd6 {[%clk 0:02:47]} 6. Bxd6 {[%clk 0:02:37]}  Qxd6 {[%clk 0:02:46]} 7. Nc3 {[%clk 0:02:38]}  Nc6 {[%clk 0:02:46]} 8. Bd3 {[%clk 0:02:38]}  Nge7 {[%clk 0:02:43]} 9. f4 {[%clk 0:02:24]}  f6 {[%clk 0:02:40]} 10. Nge2 {[%clk 0:02:12]}  Bd7 {[%clk 0:02:34]} 11. Nb5 {[%clk 0:01:58]}  Qb8 {[%clk 0:02:31]} 12. O-O {[%clk 0:01:47]}  O-O {[%clk 0:02:30]} 13. Rf3 {[%clk 0:01:45]}  Be8 {[%clk 0:02:27]} 14. Rc1 {[%clk 0:01:41]}  Bg6 {[%clk 0:02:23]} 15. Bxg6 {[%clk 0:01:39]}  hxg6 {[%clk 0:02:23]} 16. Qb3 {[%clk 0:01:35]}  Rc8 {[%clk 0:02:15]} 17. Rff1 {[%clk 0:01:35]}  a6 {[%clk 0:02:14]} 18. Nbc3 {[%clk 0:01:34]}  b5 {[%clk 0:02:14]} 19. a4 {[%clk 0:01:30]}  bxa4 {[%clk 0:02:05]} 20. Qxb8 {[%clk 0:01:24]}  Raxb8 {[%clk 0:02:04]} 21. Nxa4 {[%clk 0:01:24]}  Kf7 {[%clk 0:02:01]} 22. Rc2 {[%clk 0:01:18]}  Nb4 {[%clk 0:01:55]} 23. Rxc8 {[%clk 0:01:14]}  Rxc8 {[%clk 0:01:55]} 24. Nc5 {[%clk 0:01:13]}  Nf5 {[%clk 0:01:47]} 25. Kf2 {[%clk 0:01:08]}  Rb8 {[%clk 0:01:41]} 26. b3 {[%clk 0:00:49]}  Nc2 {[%clk 0:01:36]} 27. Rc1 {[%clk 0:00:31]}  Nfxe3 {[%clk 0:01:33]} 28. Ng3 {[%clk 0:00:17]}  Ng4+ {[%clk 0:01:23]} 29. Kf3 {[%clk 0:00:15]}  Nxh2+ {[%clk 0:01:23]} 30. Ke2 {[%clk 0:00:15]}  Nxd4+ {[%clk 0:01:23]} 31. Kd3 {[%clk 0:00:14]}  Nxb3 {[%clk 0:01:23]} 32. Nxb3 {[%clk 0:00:14]}  Rxb3+ {[%clk 0:01:22]} 0-1


[Site "https://www.chess.com"]

[Event "Titled Tuesday Blitz July 05 Early 2022"]
[White "Corrales Jimenez, Fidel"]
[Black "Moon, Benjamin"]
[WhiteFideId "3506690"]
[BlackFideId "2064847"]
[WhiteElo "2541"]
[BlackElo "2601"]
[Result "1-0"]
[Round "03"]
[TimeControl "180+1"]
[Date "2022.07.05"]
[WhiteClock "0:00:13"]
[BlackClock "0:00:05"]

1. d4 {[%clk 0:03:00]}  d5 {[%clk 0:03:00]} 2. c4 {[%clk 0:03:00]}  e6 {[%clk 0:03:00]} 3. Nc3 {[%clk 0:03:00]}  c5 {[%clk 0:03:01]} 4. cxd5 {[%clk 0:02:55]}  exd5 {[%clk 0:03:02]} 5. Nf3 {[%clk 0:02:54]}  Nc6 {[%clk 0:03:01]} 6. g3 {[%clk 0:02:53]}  Nf6 {[%clk 0:03:01]} 7. Bg2 {[%clk 0:02:53]}  Be7 {[%clk 0:03:02]} 8. O-O {[%clk 0:02:52]}  O-O {[%clk 0:03:03]} 9. dxc5 {[%clk 0:02:52]}  Bxc5 {[%clk 0:03:04]} 10. a3 {[%clk 0:02:52]}  Ne4 {[%clk 0:03:03]} 11. Qxd5 {[%clk 0:02:34]}  Nxc3 {[%clk 0:03:02]} 12. Qxc5 {[%clk 0:02:33]}  Nxe2+ {[%clk 0:03:03]} 13. Kh1 {[%clk 0:02:34]}  Nxc1 {[%clk 0:03:04]} 14. Raxc1 {[%clk 0:02:34]}  Qf6 {[%clk 0:03:00]} 15. b4 {[%clk 0:02:29]}  a6 {[%clk 0:02:57]} 16. Ng5 {[%clk 0:02:14]}  Bf5 {[%clk 0:02:42]} 17. Ne4 {[%clk 0:02:13]}  Bxe4 {[%clk 0:01:57]} 18. Bxe4 {[%clk 0:02:14]}  Rac8 {[%clk 0:01:54]} 19. Qb6 {[%clk 0:02:12]}  Qe5 {[%clk 0:01:16]} 20. Rfe1 {[%clk 0:02:04]}  Qc7 {[%clk 0:00:38]} 21. Qxc7 {[%clk 0:02:01]}  Rxc7 {[%clk 0:00:39]} 22. Bxc6 {[%clk 0:02:01]}  bxc6 {[%clk 0:00:37]} 23. Re5 {[%clk 0:02:00]}  Rb8 {[%clk 0:00:34]} 24. Rec5 {[%clk 0:01:49]}  Rb6 {[%clk 0:00:34]} 25. Kg2 {[%clk 0:01:48]}  Kf8 {[%clk 0:00:35]} 26. Kf3 {[%clk 0:01:47]}  Ke8 {[%clk 0:00:31]} 27. h4 {[%clk 0:01:43]}  g6 {[%clk 0:00:30]} 28. h5 {[%clk 0:01:42]}  Rd7 {[%clk 0:00:25]} 29. R1c3 {[%clk 0:01:37]}  Rd6 {[%clk 0:00:18]} 30. h6 {[%clk 0:01:35]}  Kd7 {[%clk 0:00:17]} 31. Ke4 {[%clk 0:01:15]}  Rb5 {[%clk 0:00:17]} 32. f4 {[%clk 0:01:12]}  Re6+ {[%clk 0:00:16]} 33. Kf3 {[%clk 0:01:11]}  Rxc5 {[%clk 0:00:15]} 34. Rxc5 {[%clk 0:01:12]}  Rd6 {[%clk 0:00:14]} 35. Ra5 {[%clk 0:01:11]}  Rd3+ {[%clk 0:00:10]} 36. Kg4 {[%clk 0:01:10]}  f5+ {[%clk 0:00:10]} 37. Kh4 {[%clk 0:01:10]}  Rd2 {[%clk 0:00:08]} 38. Kh3 {[%clk 0:01:07]}  Rd1 {[%clk 0:00:08]} 39. Kg2 {[%clk 0:01:01]}  Rd2+ {[%clk 0:00:08]} 40. Kf3 {[%clk 0:00:34]}  Rh2 {[%clk 0:00:07]} 41. Rxa6 {[%clk 0:00:33]}  Rxh6 {[%clk 0:00:07]} 42. Kg2 {[%clk 0:00:34]}  Kd6 {[%clk 0:00:05]} 43. Ra5 {[%clk 0:00:33]}  g5 {[%clk 0:00:02]} 44. fxg5 {[%clk 0:00:31]}  Re6 {[%clk 0:00:02]} 45. Rxf5 {[%clk 0:00:30]}  Re3 {[%clk 0:00:02]} 46. Rf3 {[%clk 0:00:30]}  Re2+ {[%clk 0:00:02]} 47. Kh3 {[%clk 0:00:29]}  Re1 {[%clk 0:00:03]} 48. Kg4 {[%clk 0:00:29]}  Ra1 {[%clk 0:00:03]} 49. Kf5 {[%clk 0:00:27]}  Re1 {[%clk 0:00:04]} 50. Kf6 {[%clk 0:00:26]}  Kd7 {[%clk 0:00:04]} 51. Kg7 {[%clk 0:00:23]}  Re5 {[%clk 0:00:02]} 52. Kh6 {[%clk 0:00:23]}  Kd6 {[%clk 0:00:02]} 53. g4 {[%clk 0:00:21]}  Re4 {[%clk 0:00:02]} 54. Rg3 {[%clk 0:00:20]}  Ke7 {[%clk 0:00:02]} 55. Kxh7 {[%clk 0:00:20]}  Kf8 {[%clk 0:00:03]} 56. g6 {[%clk 0:00:19]}  Re7+ {[%clk 0:00:03]} 57. Kh6 {[%clk 0:00:18]}  Re1 {[%clk 0:00:03]} 58. Rf3+ {[%clk 0:00:15]}  Kg8 {[%clk 0:00:03]} 59. Rf6 {[%clk 0:00:15]}  Rh1+ {[%clk 0:00:04]} 60. Kg5 {[%clk 0:00:14]}  Ra1 {[%clk 0:00:03]} 61. Rxc6 {[%clk 0:00:14]}  Rxa3 {[%clk 0:00:04]} 62. b5 {[%clk 0:00:13]}  Rb3 {[%clk 0:00:05]} 63. b6 {[%clk 0:00:13]}  Kg7 {[%clk 0:00:05]} 64. Rc7+ {[%clk 0:00:12]}  Kg8 {[%clk 0:00:05]} 65. b7 {[%clk 0:00:13]}  Rb5+ {[%clk 0:00:05]} 66. Kh6 {[%clk 0:00:13]} 1-0


[Site "https://www.chess.com"]

[Event "Titled Tuesday Blitz July 05 Early 2022"]
[White "Deac, Bogdan-Daniel"]
[Black "Mindlin, Alon"]
[WhiteFideId "1226380"]
[BlackFideId "2800071"]
[WhiteElo "2648"]
[BlackElo "2390"]
[Result "0-1"]
[Round "03"]
[TimeControl "180+1"]
[Date "2022.07.05"]
[WhiteClock "0:00:05"]
[BlackClock "0:00:59"]

1. d4 {[%clk 0:02:54]}  Nf6 {[%clk 0:02:59]} 2. c4 {[%clk 0:02:50]}  e6 {[%clk 0:03:00]} 3. Nf3 {[%clk 0:02:50]}  Bb4+ {[%clk 0:02:59]} 4. Bd2 {[%clk 0:02:50]}  Qe7 {[%clk 0:02:59]} 5. g3 {[%clk 0:02:50]}  Nc6 {[%clk 0:03:00]} 6. Bg2 {[%clk 0:02:48]}  Bxd2+ {[%clk 0:03:00]} 7. Nbxd2 {[%clk 0:02:47]}  d6 {[%clk 0:03:00]} 8. Nf1 {[%clk 0:02:47]}  e5 {[%clk 0:02:53]} 9. Ne3 {[%clk 0:02:47]}  O-O {[%clk 0:02:49]} 10. O-O {[%clk 0:02:46]}  e4 {[%clk 0:02:43]} 11. Nh4 {[%clk 0:02:25]}  Re8 {[%clk 0:02:37]} 12. Rc1 {[%clk 0:02:16]}  Ng4 {[%clk 0:02:27]} 13. Nhf5 {[%clk 0:01:50]}  Bxf5 {[%clk 0:02:21]} 14. Nxf5 {[%clk 0:01:50]}  Qg5 {[%clk 0:02:21]} 15. Ne3 {[%clk 0:01:31]}  Nxe3 {[%clk 0:02:19]} 16. Qd2 {[%clk 0:01:28]}  Nxd4 {[%clk 0:02:05]} 17. fxe3 {[%clk 0:01:27]}  Nf5 {[%clk 0:02:04]} 18. Rf4 {[%clk 0:01:22]}  Re5 {[%clk 0:01:55]} 19. Rcf1 {[%clk 0:01:12]}  Rae8 {[%clk 0:01:52]} 20. Qc3 {[%clk 0:00:57]}  h5 {[%clk 0:01:43]} 21. Bh3 {[%clk 0:00:27]}  Nxg3 {[%clk 0:01:10]} 22. hxg3 {[%clk 0:00:25]}  Qxg3+ {[%clk 0:01:11]} 23. Bg2 {[%clk 0:00:26]}  Rg5 {[%clk 0:01:11]} 24. R1f2 {[%clk 0:00:19]}  h4 {[%clk 0:01:04]} 25. Rxf7 {[%clk 0:00:09]}  h3 {[%clk 0:01:02]} 26. R7f4 {[%clk 0:00:04]}  hxg2 {[%clk 0:01:01]} 27. Qe1 {[%clk 0:00:04]}  Qh3 {[%clk 0:01:00]} 28. Rh4 {[%clk 0:00:03]}  Qxh4 {[%clk 0:00:59]} 29. Rf8+ {[%clk 0:00:04]}  Rxf8 {[%clk 0:00:59]} 30. Qxh4 {[%clk 0:00:05]}  Rf1+ {[%clk 0:00:59]} 0-1


[Site "https://www.chess.com"]